Cogmind - Beta 14 @@@ ROGUE MODE // 2024.11.10 @ 13:25:13 Player: Fangrelle Result: Destroyed by D-53 Grenadier with Mini Grenade Launcher Performance ------------- Evolutions (0) 0 Regions Visited (3) 600 Robots Destroyed (38) 190 Value Destroyed (715) 715 Prototype IDs (11) 220 Alien Tech Used (0) 0 Bonus (0) 0 TOTAL SCORE: 1725 Bonus ------- None Cogmind --------- Core Integrity 0/250 Matter 274/300 Energy 82/100 System Corruption 0% Temperature Cool (3) Movement Treading (240) Ox1 Location -8/Recycling Parts ------- > --- POWER (1) -------- (None) > --- PROPULSION (2) --- Light Treads Light Treads > --- UTILITY (2) ------ High-capacity Storage Unit Utility Shielding > --- WEAPON (2) ------- Improved Light Cannon Improved Light Cannon > --- INVENTORY (20) --- Light Ion Engine Meta Core Small Storage Unit Scrap Shield Authchip [R/Combat] Authchip [R/Combat] Authchip [R/Combat] Authchip [R/Combat] Authchip [R/Combat] Authchip [Device] Cobbler Unit Improved Light Cannon Improved Light Cannon Rocket Launcher Rocket Launcher Mining Laser Maul Maul Peak State ------------ > --- POWER ------------ Ion Engine > --- PROPULSION ------- Light Treads Light Treads > --- UTILITY ---------- High-capacity Storage Unit Utility Shielding > --- WEAPON ----------- Improved Light Cannon Maul > --- INVENTORY -------- Light Ion Engine Meta Core Small Storage Unit Scrap Shield Authchip [R/Combat] Authchip [R/Combat] Authchip [R/Combat] Authchip [R/Combat] Authchip [R/Combat] Authchip [Device] Cobbler Unit Improved Light Cannon Improved Light Cannon Improved Light Cannon Rocket Launcher Rocket Launcher Mining Laser Maul [Rating: 15] Favorites ----------- Power Ion Engine Engine Ion Engine Propulsion Light Treads Treads Light Treads Utility Scrap Shield Device Seismic Detector Storage High-capacity Storage Unit Protection Scrap Shield Weapon Improved Light Cannon Energy Gun EM Pulse Gun Ballistic Gun Light Assault Rifle Ballistic Cannon Improved Light Cannon Impact Weapon Maul Special Melee Weapon Datajack Build | -11 -10 -10 -8 ------- Run | Yrd Mat Sub Rec Slots Evolved . | . . . . Power . | . . . . Propulsion . | . . . . Utility . | . . . . Weapon . | . . . . Parts Attached 28 | 7 6 14 1 Power 1 | 1 . . . Engine 1 | 1 . . . Core . | . . . . Reactor . | . . . . Propulsion 4 | 2 . 2 . Treads 4 | 2 . 2 . Leg . | . . . . Wheel . | . . . . Hover . | . . . . Flight . | . . . . Utility 8 | 2 1 5 . Device 1 | 1 . . . Storage 3 | 1 1 1 . Processor . | . . . . Hackware . | . . . . Protection 4 | . . 4 . Artifact . | . . . . Weapon 15 | 2 5 7 1 Energy Gun 2 | 1 1 . . Energy Cannon . | . . . . Ballistic Gun 5 | 1 2 2 . Ballistic Cannon 4 | . . 3 1 Launcher . | . . . . Special Weapon . | . . . . Impact Weapon 3 | . 1 2 . Slashing Weapon . | . . . . Piercing Weapon . | . . . . Special Melee Weapon 1 | . 1 . . Unidentified Prototypes . | . . . . Parts Lost 4 | . 2 1 1 Power 1 | . . . 1 Propulsion . | . . . . Utility 1 | . 1 . . Weapon 2 | . 1 1 . Highest Loss Streak 1 | . 1 1 1 To Critical Strikes . | . . . . Average Slot Usage (%) 90 | . 92 87 100 Engine 14 | . 14 14 14 Treads 28 | . 28 28 28 Storage 6 | . 14 3 14 Protection 11 | . . 12 14 Energy Gun 2 | . 14 . . Ballistic Gun 1 | . 12 . . Ballistic Cannon 12 | . . 14 14 Impact Weapon 11 | . . 12 14 Peak Build Rating 15 | 7 10 13 15 Average Rating 11 | 5 7 12 14 On Entrance 7 | . 7 10 13 Naked Turns . | . . . . Heaviest Build 54 | 15 50 54 53 Greatest Support 40 | 40 40 40 40 Greatest Overweight (x) 1 | . 1 1 1 Average Overweight (x) . | . . . 1 Largest Inventory Capacity 20 | 8 20 20 20 Average Capacity 12 | 6 18 9 20 Most Carried 20 | 4 19 20 20 Average Carried 10 | 2 8 8 19 Final Capacity 20 | 8 20 20 20 Final Carried 20 | 3 19 18 20 Class Distribution -------------------- 100% | Mutant Dominant Class ---------------- Mutant | -10/Materials Mutant | -10/Subcaves Mutant | -8/Recycling Resources | -11 -10 -10 -8 ----------- Run | Yrd Mat Sub Rec Matter Collected 720 | 187 191 342 . Remotely . | . . . . Salvage Created 1113 | 137 596 380 . Parts 75 | 5 49 21 . Haulers Intercepted 1 | . 1 . . Recyclers Shooed . | . . . . Parts Field Recycled . | . . . . Retrieved Matter . | . . . . Parts Self-Destructed 14 | . . 14 . Prevented 1 | . . 1 . Kills | -11 -10 -10 -8 ------- Run | Yrd Mat Sub Rec Combat Hostiles Destroyed 23 | . 11 12 . Melee 4 | . . 4 . Guns 9 | . 9 . . Cannons 5 | . . 5 . AOE 2 | . 2 . . Classes Destroyed 14 | 3 7 4 . Worker 2 | 2 . . . Builder 3 | . 3 . . Tunneler 1 | 1 . . . Hauler 1 | . 1 . . Recycler 2 | 1 1 . . Mechanic 1 | . 1 . . Operator 1 | . 1 . . Turret 2 | . . 2 . Watcher 2 | . 2 . . Swarmer 12 | . 6 6 . Grunt 7 | . 5 2 . Sentry 1 | . . 1 . Cobbler 2 | . . 2 . Subdweller 3 | . . 3 . Best Kill Streak 6 | 4 6 3 . Combat Bots Only 3 | . 3 3 . Max Kills in Single Turn 3 | 1 3 1 . Gunslinging 1 | . 1 . . Exploded 2 | . 2 . . Melee 1 | . . 1 . Uniques/NPCs Destroyed . | . . . . Combat | -11 -10 -10 -8 -------- Run | Yrd Mat Sub Rec Hostile Shots Fired 155 | . 45 102 8 Missed 59 | . 14 44 1 Damage Taken 1297 | . 339 743 215 Core 267 | . 40 154 73 Absorbed by Shields . | . . . . Core Remaining (%) 100 | 100 . . . Volleys Fired 89 | 10 44 33 2 Largest 2 | 2 2 2 2 Hottest 80 | 60 80 78 78 Shots Fired 161 | 20 86 51 4 Gun 121 | 20 86 15 . Cannon 40 | . . 36 4 Launcher . | . . . . Special . | . . . . Kinetic 94 | 10 40 40 4 Thermal . | . . . . Explosive . | . . . . Electromagnetic 67 | 10 46 11 . Robot Hit Streak 8 | 8 5 7 6 Robot Miss Streak 5 | 2 5 3 1 Penetration Max . | . . . . Secondary Targets 2 | . 2 . . Max Gunslinging Chain 1 | . 1 . . Shots Hit Robots 108 | 14 51 40 3 Core Hits 48 | 5 24 19 . Critical Kills . | . . . . Critical Parts Destroyed 6 | . 1 5 . Critical Strikes 8 | 1 2 5 . Corrupt 2 | 1 1 . . Smash 6 | . 1 5 . Melee Attacks 23 | . 4 19 . Impact 23 | . 4 19 . Slashing . | . . . . Piercing . | . . . . Sneak Attacks 1 | . 1 . . Combat Hostiles . | . . . . Follow-up Attacks . | . . . . Damage Inflicted 2148 | 218 922 942 66 Guns 945 | 183 650 112 . Cannons 521 | . . 455 66 Explosions 270 | 35 200 35 . Melee 412 | . 72 340 . Ramming . | . . . . Kinetic 911 | 96 261 488 66 Thermal 270 | 35 200 35 . Explosive . | . . . . Electromagnetic 555 | 87 389 79 . Impact 412 | . 72 340 . Slashing . | . . . . Piercing . | . . . . Highest Corruption . | . . . . Average Corruption . | . . . . Corruption Purged . | . . . . Corruption Blocked . | . . . . Overload Shots . | . . . . Overflow Damage 329 | . 76 239 14 Projectiles 14 | . . . 14 Explosions 4 | . 4 . . Melee 311 | . 72 239 . Knockbacks 3 | . . 3 . Impact 1 | . . 1 . Kinetic 2 | . . 2 . Secondary . | . . . . Self-Inflicted Damage 66 | . 45 21 . Shots 3 | . 2 1 . Rammed . | . . . . Targets Rammed . | . . . . Kicked . | . . . . Crushed . | . . . . Highest Temperature 126 | . 126 . 3 Average Temperature 38 | . 40 . 2 Received Heat Transfer 291 | . 102 189 . Siege Activations . | . . . . Robots Corrupted 3 | . . 3 . Combat Hostiles 3 | . . 3 . Parts Fried 10 | . 6 4 . Impact Corruptions 9 | . 1 8 . Robots Melted . | . . . . Combat Hostiles . | . . . . Parts Melted . | . . . . Heat Transferred 200 | . 150 50 . Parts Sabotaged . | . . . . Parts Stolen . | . . . . Parts Stripped . | . . . . Power Chain Reactions 4 | 1 2 1 . Alert | -11 -10 -10 -8 ------- Run | Yrd Mat Sub Rec Peak Influence 311 | 20 311 . 121 Initial 86 | . 13 . 86 Average 77 | 3 157 . 34 Maximum Alert Level 1 | . 1 . . Low Security (%) 90 | 100 74 . 100 Level 1 9 | . 25 . . Level 2 . | . . . . Level 3 . | . . . . Level 4 . | . . . . Level 5 . | . . . . High Security . | . . . . Max Security . | . . . . Squads Dispatched 2 | . 2 . . Investigation 2 | . 2 . . Extermination . | . . . . Reinforcement . | . . . . Assault . | . . . . Garrison . | . . . . Intercept . | . . . . Searches Triggered . | . . . . Construction Impeded . | . . . . Haulers Reinforced . | . . . . Active Scanning Responses . | . . . . Cargo Convoy Interrupts . | . . . . Stealth | -11 -10 -10 -8 --------- Run | Yrd Mat Sub Rec Distress Signals 1 | . 1 . . Communications Jammed . | . . . . Distress Signals . | . . . . Times Spotted 41 | . 16 23 2 Peak Tracking Total 5 | . 3 5 2 Tactical Retreats 4 | . . 4 . Traps | -11 -10 -10 -8 ------- Run | Yrd Mat Sub Rec Traps Triggered 1 | . . 1 . Indirectly . | . . . . Trap Hack Attempts 14 | . 14 . . Triggered . | . . . . Disarmed 1 | . 1 . . Reprogrammed . | . . . . Reused . | . . . . Traps Extracted . | . . . . Installed . | . . . . Triggered 1 | . . 1 . Machines | -11 -10 -10 -8 ---------- Run | Yrd Mat Sub Rec Machines Disabled 5 | . 2 3 . Max in Single Turn 1 | . 1 1 . Machines Repaired . | . . . . Machines Dismantled . | . . . . Machines Sabotaged . | . . . . Overloaded Fab Kills . | . . . . Hacking | -11 -10 -10 -8 --------- Run | Yrd Mat Sub Rec Machines Accessed 17 | . 8 1 8 Terminals 11 | . 6 . 5 Fabricators . | . . . . Repair Stations . | . . . . Recycling Units 5 | . 2 . 3 Scanalyzers . | . . . . Garrison Access . | . . . . Total Hacks 49 | . 30 1 18 Successful 31 | . 17 1 13 Failed 17 | . 12 . 5 Catastrophic 2 | . 1 . 1 Database Lockouts 1 | . 1 . . Manual 41 | . 26 . 15 Terminals 37 | . 25 . 12 Fabricators . | . . . . Repair Stations . | . . . . Recycling Units 11 | . 5 . 6 Scanalyzers . | . . . . Garrison Access . | . . . . Terminal Hacks 8 | . 6 1 1 Robot Analysis 2 | . 2 . . Terminal Index 1 | . . . 1 Alert Level 1 | . 1 . . Maintenance Status 1 | . 1 . . Hauler Manifests 1 | . 1 . . Zone Layout 1 | . 1 . . Derelict Proto ID Bank 1 | . . 1 . Fabricator Hacks . | . . . . Repair Station Hacks . | . . . . Recycling Unit Hacks 5 | . 2 . 3 Report Inventory 5 | . 2 . 3 Scanalyzer . | . . . . Garrison Access Hacks . | . . . . Unauthorized Hacks 18 | . 9 . 9 Terminals 13 | . 7 . 6 Assimilate 1 | . 1 . . Botnet 10 | . 5 . 5 Operators 1 | . 1 . . Skim 1 | . . . 1 Fabricators . | . . . . Repair Stations . | . . . . Recycling Units 5 | . 2 . 3 Tunnel 5 | . 2 . 3 Scanalyzers . | . . . . Garrison Access . | . . . . Data Cores Recovered 1 | . 1 . . Used . | . . . . Hacking Detections 12 | . 7 . 5 Full Trace Events 1 | . 1 . . Feedback Events . | . . . . Feedback Blocked . | . . . . Robot Schematics Acquired . | . . . . Robots Built . | . . . . Authchips . | . . . . Time . | . . . . Total Robot Build Rating . | . . . . Part Schematics Acquired . | . . . . Parts Built . | . . . . Authchips . | . . . . Time . | . . . . Total Part Build Rating . | . . . . Parts Repaired . | . . . . Time . | . . . . Parts Recycled . | . . . . Recycled Matter . | . . . . Retrieved Matter . | . . . . Retrieved Components . | . . . . Parts Scanalyzed . | . . . . Part Schematics Acquired . | . . . . Parts Damaged . | . . . . Bothacking | -11 -10 -10 -8 ------------ Run | Yrd Mat Sub Rec Used RIF Installer . | . . . . Robots Hacked . | . . . . Non-combat . | . . . . Combat . | . . . . Robot Hacks Applied . | . . . . Relay Couplers Released . | . . . . Fabnet Peak Effective % . | . . . . Robots Rewired . | . . . . Allies Hacked . | . . . . Hacks Repelled . | . . . . Allies | -11 -10 -10 -8 -------- Run | Yrd Mat Sub Rec Total Allies . | . . . . Largest Group . | . . . . Highest-Rated Group . | . . . . Highest-Rated Ally . | . . . . Total Orders . | . . . . Ally Attacks . | . . . . Total Damage . | . . . . Kills . | . . . . Allies Corrupted . | . . . . Allies Melted . | . . . . Intel | -11 -10 -10 -8 ------- Run | Yrd Mat Sub Rec Robot Analysis Total 2 | . 2 . . Derelict Logs Recovered 2 | . . 2 . Drone Launches . | . . . . Drone Recoveries . | . . . . Exploration | -11 -10 -10 -8 ------------- Run | Yrd Mat Sub Rec Turns Passed 8246 | 133 951 5608 1554 Spaces Moved 3271 | 57 329 2249 636 Core 1 | 1 . . . Treads 3270 | 56 329 2249 636 Legs . | . . . . Wheels . | . . . . Hover . | . . . . Flight . | . . . . Fastest Speed 50 | 50 160 160 240 Average Speed 197 | 158 227 181 240 Slowest Speed 240 | 160 240 240 240 Overloaded Moves . | . . . . Propulsion Burnouts . | . . . . Robots Hopped . | . . . . Cave-ins Triggered . | . . . . Exploration Rate (%) 55 | 4 64 70 85 Regions Visited 3 Branch Regions 2 Pre-discovered Areas 7 | . 2 2 3 Known Exits Taken . | . . . . Unknown Exits Taken 3 | 1 1 1 . Scrap Searched 3 | . . 3 . Spaces Dug . | . . . . Terrain Destroyed 11 | . 7 4 . Melee . | . . . . Projectile . | . . . . AOE 11 | . 7 4 . Terrain Rammed . | . . . . Walls Destroyed . | . . . . Machines Disabled . | . . . . Actions | -11 -10 -10 -8 --------- Run | Yrd Mat Sub Rec Total 4865 | 77 440 3684 664 Wait 1372 | . 28 1329 15 Move 3268 | 56 328 2248 636 Hop . | . . . . Pick Up 47 | 4 15 22 6 Fast Attach 9 | 6 2 1 . Attach 6 | 1 . 5 . Detach . | . . . . Swap 13 | . 4 8 1 Drop 17 | . 1 12 4 Fire 89 | 10 44 33 2 Melee 23 | . 4 19 . Ram . | . . . . Kick . | . . . . Crush . | . . . . Escape Stasis . | . . . . Rewire . | . . . . Trap 14 | . 14 . . Miscellaneous 7 | . . 7 . Route ------- -11/Scrapyard -10/Materials (discovered 3 exits: [*Mat x2] / *Sub) -10/Subcaves -8/Recycling (discovered 1 exit: [*Fac]) History --------- Turn | Location | Event 7 | -11/Scrapyard | Discovered new exit (range 15) 134 | -11/Scrapyard | Entered Materials 318 | -10/Materials | Build established: Mutant 560 | -10/Materials | Discovered new exit (range 12) 781 | -10/Materials | Central database locked down 852 | -10/Materials | Discovered new exit (range 10) 1079 | -10/Materials | Discovered new exit (range 3) 1085 | -10/Materials | Entered Subcaves 1092 | -10/Subcaves | Learned location of Zion (-7) 1092 | -10/Subcaves | Met a Zionite searching for "candidates" 1215 | -10/Subcaves | Learned location of Storage (-8) 1623 | -10/Subcaves | Core integrity fell below 50% 2274 | -10/Subcaves | A swath of the cavern ceiling suddenly collapsed 3867 | -10/Subcaves | Shifting Twisted Machinery released Sub. Machine Gun 3868 | -10/Subcaves | Shifting Twisted Machinery released Sub. Machine Gun 3871 | -10/Subcaves | Shifting Twisted Machinery released Battle Cannon 3997 | -10/Subcaves | Visited 4L-MR0's lab 4019 | -10/Subcaves | Found Meta Core 4916 | -10/Subcaves | Discovered new exit (range 14) 5133 | -10/Subcaves | Shifting Twisted Machinery released Sub. Monowheel 6693 | -10/Subcaves | Entered Recycling 7659 | -8/Recycling | Discovered new exit (range 7) 8246 | -8/Recycling | Core integrity fell below 20% 8247 | -8/Recycling | Destroyed by D-53 Grenadier with Mini Grenade Launcher Last Messages --------------- Terminal linked with 4 systems. Awaiting botnet instructions. >>Trojan(Skim) Trojan loaded successfully. Testing... Terminal linked with 0 systems. Please expand to 4 more systems! 08241_ H-55 Commando springs to life. 08242_ D-53 Grenadier springs to life. 08242_ Ion Engine destroyed. 08242_ U-05 Engineer destroyed. 08242_ T-07 Excavator destroyed. 08243_ Penetrated by Slug. 08245_ U-05 Engineer lays Concrete. 08245_ R-06 Scavenger collects Terrain Scan Processor. 08245_ R-06 Scavenger destroyed. 08246_ Penetrated by Slug. 08247_ The unstable cave ceiling collapses. 08247_ U-05 Engineer builds a Wall. 08247_ Destroyed Shock Absorption System. Map ----- +----------------------------------------------------+ | ???# ##??"## ###%%%######### | | ???# #?????# + | | ???# #?????# ######## | | ???# #######+## ### #### #??????# | | ???# # # ##+##+#?#+#??# ######?# | | ???# # "T" # # ? #??# #?# " | | ???# # # # """ """ #??# #?# " | | ???# # """ + # """ """ #### #?# " | | ???# # """"" # # """ """ / """ #?# " | | ???# # """"" # # """ """ #### """ #?# " | | ???# # """"" # # """ """ #??# """ #?# | | ???# # """ # # ?? #??# """ #?### | | ???# # # # ?? ? ???# """ ??? | | ???# #####/#### ######+####??# ?? | | ???# #???# #??# ? | | ???# #???# #??# ########## | | ???# ##### """ """ #??# #????????? | | ???# "Y"u """ #??# #????????? | | ???## """ #??# #????????? | | ????# #??# #????????? | | ????# #??# ####????????? | | ????# u##### #?## ##??????????? | | ????# ######### # ## ### ############ | | ????# #??????# r ## T | | ????# #?????## ###### ############ | | ????# #?????# # @ #????##/##??????????? | | ????# #?????## #?????? ??????????? | | ????# #????l [ % #???????"" ?????????? | | ????# #??#th g #????????" ????????? | | ????# #??# t %###????????? #???????? | | ????# #??# % ! #??????????? #???????? | | ????# #??#guk r r #???????????? #???????? | | ????# #??# ] h h#?????????????????????? | | ????# #??#s r d% #?????????????????????? | | ????# #??# i !t Y#???"?????????????????? | | ????# #?######;#######"Y"###?????????????? | | ????# ### ????????????? | | ????# ????????????? | | ????# ???????????? | | ????# ???????????? | | ????# ???????????? | | ????##############%%%### #?????????????????? | | ???????????????????? #?????????????????????? | | ???????????????????????????????????????????? | | ???????????????????????????????????????????? | | ???????????????????????????????????????????? | | | | | | | | | +----------------------------------------------------+ Best States ------------- Heat Dissipation 25 Energy Generation 10 Energy Capacity 250 Matter Stores 300 Matter Capacity 300 Sight Range 16 Terrain Scan Density 10 Armor Coverage 800 Utility Shielding 33 Evasion (%) 40 Recoil Reduction 2 Authchip Count 6 Item Schematics ----------------- None Robot Schematics ------------------ None Fabricated ------------ Nothing Alien Tech Used ----------------- None Achievements -------------- None Challenges ------------ None Game ------ Seed SkeletonDerelictClaws Manual? 0 Play Time 00:25:42 Cumulative 43.3 hours Start 2024.11.10 @ 12:56:11 End 2024.11.10 @ 13:25:13 Sessions 1 Manual Loads 0 Difficulty Rogue Special Mode None Game No. 80 Rogue 80 Adventurer 0 Explorer 0 Win Type - Total 0 Types 0/0/0/0/0/0/0/0/0 Lore% 35 Gallery% 30 Achievement% 32 Wizard Run 0 Options --------- Layout 0 ASCII 0 Keyboard 0 Movement Mouse Keybinds 0 Fullscreen 1 Font 24/Smallcaps Map View 91x25 Zoom Use 86% Tactical HUD 1 Map Filters NONE Filters NONE Steam 1 RUN: 8a96990d-b955-4441-80d1-c58fcaebcdcc